{"text_format":"3","workbook":"xlsx","n_sheets":1,"sheets":["Orçamento familiar mensal"],"not_rendered":{"defined_names":1},"read":"whole","date_system":"1900"}

{"sheet":"Orçamento familiar mensal","index":0,"n_rows":68,"n_cols":9,"rows_kept":68,"merged":[[0,0,0,6],[2,0,2,1],[2,5,2,6],[8,5,8,6],[18,0,18,3],[27,5,27,8],[29,0,29,3],[36,0,36,3],[37,5,37,8],[42,0,42,3],[44,5,44,8],[54,0,54,3],[54,5,54,8],[61,0,61,3],[62,5,62,8]]}
["Orçamento Familiar Mensal"]
[]
["Custo total projetado",null,"Custo real projetado","Diferença total",null,"Renda mensal projetada"]
[null,{"$f":"Housing[[#Totals],[Custo projetado]]+Transportation[[#Totals],[Custo projetado]]+Insurance[[#Totals],[Custo projetado]]+Food[[#Totals],[Custo projetado]]+Children[[#Totals],[Custo projetado]]+Legal[[#Totals],[Custo projetado]]+Savings[[#Totals],[Custo projetado]]+Loans[[#Totals],[Custo projetado]]+Entertainment[[#Totals],[Custo projetado]]+Taxes[[#Totals],[Custo projetado]]+PersonalCare[[#Totals],[Custo projetado]]+Pets[[#Totals],[Custo projetado]]+Gifts[[#Totals],[Custo projetado]]","v":{"v":1203,"d":"1,203.00 €"}},{"$f":"Housing[[#Totals],[Custo real]]+Transportation[[#Totals],[Custo real]]+Insurance[[#Totals],[Custo real]]+Food[[#Totals],[Custo real]]+Children[[#Totals],[Custo real]]+Legal[[#Totals],[Custo real]]+Savings[[#Totals],[Custo real]]+Loans[[#Totals],[Custo real]]+Entertainment[[#Totals],[Custo real]]+Taxes[[#Totals],[Custo real]]+PersonalCare[[#Totals],[Custo real]]+Pets[[#Totals],[Custo real]]+Gifts[[#Totals],[Custo real]]","v":{"v":1317,"d":"1,317.00 €"}},{"$f":"Housing[[#Totals],[Diferença]]+Transportation[[#Totals],[Diferença]]+Insurance[[#Totals],[Diferença]]+Food[[#Totals],[Diferença]]+Children[[#Totals],[Diferença]]+Legal[[#Totals],[Diferença]]+Savings[[#Totals],[Diferença]]+Loans[[#Totals],[Diferença]]+Entertainment[[#Totals],[Diferença]]+Taxes[[#Totals],[Diferença]]+PersonalCare[[#Totals],[Diferença]]+Pets[[#Totals],[Diferença]]+Gifts[[#Totals],[Diferença]]","v":{"v":-114,"d":"-114.00 €"}},null,"Renda 1",{"v":4000,"d":"4,000.00 €"}]
[{"$nulls":5},"Renda 2",{"v":1200,"d":"1,200.00 €"}]
["Moradia","Custo projetado","Custo real","Diferença",null,"Receita extra",{"v":300,"d":"300.00 €"}]
["Hipoteca ou aluguel",{"v":1000,"d":"1,000.00 €"},{"v":1000,"d":"1,000.00 €"},{"$f":"Housing[Custo projetado]-Housing[Custo real]","v":{"v":0,"d":"0.00 €"}},null,"Receita mensal total",{"$f":"SUM(G4:G6)","v":{"v":5500,"d":"5,500.00 €"}}]
["Segunda hipoteca ou aluguel",{"v":0,"d":"0.00 €"},{"v":0,"d":"0.00 €"},{"$f":"Housing[Custo projetado]-Housing[Custo real]","v":{"v":0,"d":"0.00 €"}}]
["Telefone",{"v":62,"d":"62.00 €"},{"v":100,"d":"100.00 €"},{"$f":"Housing[Custo projetado]-Housing[Custo real]","v":{"v":-38,"d":"-38.00 €"}},null,"Renda mensal real"]
["Eletricidade",{"v":44,"d":"44.00 €"},{"v":125,"d":"125.00 €"},{"$f":"Housing[Custo projetado]-Housing[Custo real]","v":{"v":-81,"d":"-81.00 €"}},null,"Renda 1",{"v":4000,"d":"4,000.00 €"}]
["Gasolina",{"v":22,"d":"22.00 €"},{"v":35,"d":"35.00 €"},{"$f":"Housing[Custo projetado]-Housing[Custo real]","v":{"v":-13,"d":"-13.00 €"}},null,"Renda 2",{"v":1200,"d":"1,200.00 €"}]
["Água e esgoto",{"v":8,"d":"8.00 €"},{"v":8,"d":"8.00 €"},{"$f":"Housing[Custo projetado]-Housing[Custo real]","v":{"v":0,"d":"0.00 €"}},null,"Receita extra",{"v":300,"d":"300.00 €"}]
["Cabo",{"v":34,"d":"34.00 €"},{"v":39,"d":"39.00 €"},{"$f":"Housing[Custo projetado]-Housing[Custo real]","v":{"v":-5,"d":"-5.00 €"}},null,"Receita mensal total",{"$f":"SUM(G10:G12)","v":{"v":5500,"d":"5,500.00 €"}}]
["Remoção de lixo",{"v":10,"d":"10.00 €"},{"v":10,"d":"10.00 €"},{"$f":"Housing[Custo projetado]-Housing[Custo real]","v":{"v":0,"d":"0.00 €"}}]
["Manutenção ou consertos",{"v":23,"d":"23.00 €"},{"v":0,"d":"0.00 €"},{"$f":"Housing[Custo projetado]-Housing[Custo real]","v":{"v":23,"d":"23.00 €"}},null,"Saldo projetado\n",{"$f":"SUM(G7-B4)","v":{"v":4297,"d":"4,297.00 €"}}]
["Suprimentos",{"v":0,"d":"0.00 €"},{"v":0,"d":"0.00 €"},{"$f":"Housing[Custo projetado]-Housing[Custo real]","v":{"v":0,"d":"0.00 €"}},null,"Saldo real",{"$f":"SUM(G13-C4)","v":{"v":4183,"d":"4,183.00 €"}}]
["Outros",{"v":0,"d":"0.00 €"},{"v":0,"d":"0.00 €"},{"$f":"Housing[Custo projetado]-Housing[Custo real]","v":{"v":0,"d":"0.00 €"}},null,"Diferença",{"$f":"SUM(G16-G15)","v":{"v":-114,"d":"-114.00 €"}}]
["Total",{"$f":"SUBTOTAL(109,Housing[Custo projetado])","v":{"v":1203,"d":"1,203.00 €"}},{"$f":"SUBTOTAL(109,Housing[Custo real])","v":{"v":1317,"d":"1,317.00 €"}},{"$f":"SUBTOTAL(109,Housing[Diferença])","v":{"v":-114,"d":"-114.00 €"}}]
[]
["Transporte","Custo projetado","Custo real","Diferença",null,"Empréstimos","Custo projetado","Custo real","Diferença"]
["Pagamento de veículo 1",null,null,{"$f":"Transportation[Custo projetado]-Transportation[Custo real]","v":{"v":0,"d":"0.00 €"}},null,"Pessoal",null,null,{"$f":"Loans[Custo projetado]-Loans[Custo real]","v":{"v":0,"d":"0.00 €"}}]
["Pagamento de veículo 2",null,null,{"$f":"Transportation[Custo projetado]-Transportation[Custo real]","v":{"v":0,"d":"0.00 €"}},null,"Aluno",null,null,{"$f":"Loans[Custo projetado]-Loans[Custo real]","v":{"v":0,"d":"0.00 €"}}]
["Tarifa de ônibus/táxi",null,null,{"$f":"Transportation[Custo projetado]-Transportation[Custo real]","v":{"v":0,"d":"0.00 €"}},null,"Cartão de crédito",null,null,{"$f":"Loans[Custo projetado]-Loans[Custo real]","v":{"v":0,"d":"0.00 €"}}]
["Seguro",null,null,{"$f":"Transportation[Custo projetado]-Transportation[Custo real]","v":{"v":0,"d":"0.00 €"}},null,"Cartão de crédito",null,null,{"$f":"Loans[Custo projetado]-Loans[Custo real]","v":{"v":0,"d":"0.00 €"}}]
["Licenciamento",null,null,{"$f":"Transportation[Custo projetado]-Transportation[Custo real]","v":{"v":0,"d":"0.00 €"}},null,"Cartão de crédito",null,null,{"$f":"Loans[Custo projetado]-Loans[Custo real]","v":{"v":0,"d":"0.00 €"}}]
["Combustível",null,null,{"$f":"Transportation[Custo projetado]-Transportation[Custo real]","v":{"v":0,"d":"0.00 €"}},null,"Outros",null,null,{"$f":"Loans[Custo projetado]-Loans[Custo real]","v":{"v":0,"d":"0.00 €"}}]
["Manutenção",null,null,{"$f":"Transportation[Custo projetado]-Transportation[Custo real]","v":{"v":0,"d":"0.00 €"}},null,"Total",{"$f":"SUBTOTAL(109,Loans[Custo projetado])","v":{"v":0,"d":"0.00 €"}},{"$f":"SUBTOTAL(109,Loans[Custo real])","v":{"v":0,"d":"0.00 €"}},{"$f":"SUBTOTAL(109,Loans[Diferença])","v":{"v":0,"d":"0.00 €"}}]
["Outros",null,null,{"$f":"Transportation[Custo projetado]-Transportation[Custo real]","v":{"v":0,"d":"0.00 €"}}]
["Total",{"$f":"SUBTOTAL(109,Transportation[Custo projetado])","v":{"v":0,"d":"0.00 €"}},{"$f":"SUBTOTAL(109,Transportation[Custo real])","v":{"v":0,"d":"0.00 €"}},{"$f":"SUBTOTAL(109,Transportation[Diferença])","v":{"v":0,"d":"0.00 €"}},null,"Entretenimento","Custo projetado","Custo real","Diferença"]
[{"$nulls":5},"Vídeo/DVD",null,null,{"$f":"Entertainment[Custo projetado]-Entertainment[Custo real]","v":{"v":0,"d":"0.00 €"}}]
["Seguro","Custo projetado","Custo real","Diferença",null,"CDs",null,null,{"$f":"Entertainment[Custo projetado]-Entertainment[Custo real]","v":{"v":0,"d":"0.00 €"}}]
["Lar",null,null,{"$f":"Insurance[Custo projetado]-Insurance[Custo real]","v":{"v":0,"d":"0.00 €"}},null,"Filmes",null,null,{"$f":"Entertainment[Custo projetado]-Entertainment[Custo real]","v":{"v":0,"d":"0.00 €"}}]
["Saúde",null,null,{"$f":"Insurance[Custo projetado]-Insurance[Custo real]","v":{"v":0,"d":"0.00 €"}},null,"Shows",null,null,{"$f":"Entertainment[Custo projetado]-Entertainment[Custo real]","v":{"v":0,"d":"0.00 €"}}]
["Vida",null,null,{"$f":"Insurance[Custo projetado]-Insurance[Custo real]","v":{"v":0,"d":"0.00 €"}},null,"Eventos esportivos",null,null,{"$f":"Entertainment[Custo projetado]-Entertainment[Custo real]","v":{"v":0,"d":"0.00 €"}}]
["Outros",null,null,{"$f":"Insurance[Custo projetado]-Insurance[Custo real]","v":{"v":0,"d":"0.00 €"}},null,"Teatro",null,null,{"$f":"Entertainment[Custo projetado]-Entertainment[Custo real]","v":{"v":0,"d":"0.00 €"}}]
["Total",{"$f":"SUBTOTAL(109,Insurance[Custo projetado])","v":{"v":0,"d":"0.00 €"}},{"$f":"SUBTOTAL(109,Insurance[Custo real])","v":{"v":0,"d":"0.00 €"}},{"$f":"SUBTOTAL(109,Insurance[Diferença])","v":{"v":0,"d":"0.00 €"}},null,"Outros",null,null,{"$f":"Entertainment[Custo projetado]-Entertainment[Custo real]","v":{"v":0,"d":"0.00 €"}}]
[{"$nulls":5},"Total",{"$f":"SUBTOTAL(109,Entertainment[Custo projetado])","v":{"v":0,"d":"0.00 €"}},{"$f":"SUBTOTAL(109,Entertainment[Custo real])","v":{"v":0,"d":"0.00 €"}},{"$f":"SUBTOTAL(109,Entertainment[Diferença])","v":{"v":0,"d":"0.00 €"}}]
["Comida","Custo projetado","Custo real","Diferença"]
["Mercearia",null,null,{"$f":"Food[Custo projetado]-Food[Custo real]","v":{"v":0,"d":"0.00 €"}},null,"Impostos","Custo projetado","Custo real","Diferença"]
["Jantar fora",null,null,{"$f":"Food[Custo projetado]-Food[Custo real]","v":{"v":0,"d":"0.00 €"}},null,"Federal",null,null,{"$f":"Taxes[Custo projetado]-Taxes[Custo real]","v":{"v":0,"d":"0.00 €"}}]
["Outros",null,null,{"$f":"Food[Custo projetado]-Food[Custo real]","v":{"v":0,"d":"0.00 €"}},null,"Estado",null,null,{"$f":"Taxes[Custo projetado]-Taxes[Custo real]","v":{"v":0,"d":"0.00 €"}}]
["Total",{"$f":"SUBTOTAL(109,Food[Custo projetado])","v":{"v":0,"d":"0.00 €"}},{"$f":"SUBTOTAL(109,Food[Custo real])","v":{"v":0,"d":"0.00 €"}},{"$f":"SUBTOTAL(109,Food[Diferença])","v":{"v":0,"d":"0.00 €"}},null,"Local",null,null,{"$f":"Taxes[Custo projetado]-Taxes[Custo real]","v":{"v":0,"d":"0.00 €"}}]
[{"$nulls":5},"Outros",null,null,{"$f":"Taxes[Custo projetado]-Taxes[Custo real]","v":{"v":0,"d":"0.00 €"}}]
["Crianças","Custo projetado","Custo real","Diferença",null,"Total",{"$f":"SUBTOTAL(109,Taxes[Custo projetado])","v":{"v":0,"d":"0.00 €"}},{"$f":"SUBTOTAL(109,Taxes[Custo real])","v":{"v":0,"d":"0.00 €"}},{"$f":"SUBTOTAL(109,Taxes[Diferença])","v":{"v":0,"d":"0.00 €"}}]
["Médico",null,null,{"$f":"Children[Custo projetado]-Children[Custo real]","v":{"v":0,"d":"0.00 €"}}]
["Vestuário",null,null,{"$f":"Children[Custo projetado]-Children[Custo real]","v":{"v":0,"d":"0.00 €"}},null,"Cuidados pessoais","Custo projetado","Custo real","Diferença"]
["Custo de instrução",null,null,{"$f":"Children[Custo projetado]-Children[Custo real]","v":{"v":0,"d":"0.00 €"}},null,"Médico",null,null,{"$f":"PersonalCare[Custo projetado]-PersonalCare[Custo real]","v":{"v":0,"d":"0.00 €"}}]
["Materiais escolares",null,null,{"$f":"Children[Custo projetado]-Children[Custo real]","v":{"v":0,"d":"0.00 €"}},null,"Cabelo/unhas",null,null,{"$f":"PersonalCare[Custo projetado]-PersonalCare[Custo real]","v":{"v":0,"d":"0.00 €"}}]
["Impostos ou taxas da organização",null,null,{"$f":"Children[Custo projetado]-Children[Custo real]","v":{"v":0,"d":"0.00 €"}},null,"Vestuário",null,null,{"$f":"PersonalCare[Custo projetado]-PersonalCare[Custo real]","v":{"v":0,"d":"0.00 €"}}]
["Dinheiro do almoço",null,null,{"$f":"Children[Custo projetado]-Children[Custo real]","v":{"v":0,"d":"0.00 €"}},null,"Lavagem a seco",null,null,{"$f":"PersonalCare[Custo projetado]-PersonalCare[Custo real]","v":{"v":0,"d":"0.00 €"}}]
["Cuidado com as crianças",null,null,{"$f":"Children[Custo projetado]-Children[Custo real]","v":{"v":0,"d":"0.00 €"}},null,"Academia",null,null,{"$f":"PersonalCare[Custo projetado]-PersonalCare[Custo real]","v":{"v":0,"d":"0.00 €"}}]
["Brinquedos/jogos",null,null,{"$f":"Children[Custo projetado]-Children[Custo real]","v":{"v":0,"d":"0.00 €"}},null,"Impostos/taxas da organização",null,null,{"$f":"PersonalCare[Custo projetado]-PersonalCare[Custo real]","v":{"v":0,"d":"0.00 €"}}]
["Outros",null,null,{"$f":"Children[Custo projetado]-Children[Custo real]","v":{"v":0,"d":"0.00 €"}},null,"Outros",null,null,{"$f":"PersonalCare[Custo projetado]-PersonalCare[Custo real]","v":{"v":0,"d":"0.00 €"}}]
["Total",{"$f":"SUBTOTAL(109,Children[Custo projetado])","v":{"v":0,"d":"0.00 €"}},{"$f":"SUBTOTAL(109,Children[Custo real])","v":{"v":0,"d":"0.00 €"}},{"$f":"SUBTOTAL(109,Children[Diferença])","v":{"v":0,"d":"0.00 €"}},null,"Total",{"$f":"SUBTOTAL(109,PersonalCare[Custo projetado])","v":{"v":0,"d":"0.00 €"}},{"$f":"SUBTOTAL(109,PersonalCare[Custo real])","v":{"v":0,"d":"0.00 €"}},{"$f":"SUBTOTAL(109,PersonalCare[Diferença])","v":{"v":0,"d":"0.00 €"}}]
[]
["Legal","Custo projetado","Custo real","Diferença",null,"Animais domésticos","Custo projetado","Custo real","Diferença"]
["Advogado",null,null,{"$f":"Legal[Custo projetado]-Legal[Custo real]","v":{"v":0,"d":"0.00 €"}},null,"Comida",null,null,{"$f":"Pets[Custo projetado]-Pets[Custo real]","v":{"v":0,"d":"0.00 €"}}]
["Pensão",null,null,{"$f":"Legal[Custo projetado]-Legal[Custo real]","v":{"v":0,"d":"0.00 €"}},null,"Médico",null,null,{"$f":"Pets[Custo projetado]-Pets[Custo real]","v":{"v":0,"d":"0.00 €"}}]
["Pagamentos",null,null,{"$f":"Legal[Custo projetado]-Legal[Custo real]","v":{"v":0,"d":"0.00 €"}},null,"Aparência",null,null,{"$f":"Pets[Custo projetado]-Pets[Custo real]","v":{"v":0,"d":"0.00 €"}}]
["Outros",null,null,{"$f":"Legal[Custo projetado]-Legal[Custo real]","v":{"v":0,"d":"0.00 €"}},null,"Brinquedos",null,null,{"$f":"Pets[Custo projetado]-Pets[Custo real]","v":{"v":0,"d":"0.00 €"}}]
["Total",{"$f":"SUBTOTAL(109,Legal[Custo projetado])","v":{"v":0,"d":"0.00 €"}},{"$f":"SUBTOTAL(109,Legal[Custo real])","v":{"v":0,"d":"0.00 €"}},{"$f":"SUBTOTAL(109,Legal[Diferença])","v":{"v":0,"d":"0.00 €"}},null,"Outros",null,null,{"$f":"Pets[Custo projetado]-Pets[Custo real]","v":{"v":0,"d":"0.00 €"}}]
[{"$nulls":5},"Total",{"$f":"SUBTOTAL(109,Pets[Custo projetado])","v":{"v":0,"d":"0.00 €"}},{"$f":"SUBTOTAL(109,Pets[Custo real])","v":{"v":0,"d":"0.00 €"}},{"$f":"SUBTOTAL(109,Pets[Diferença])","v":{"v":0,"d":"0.00 €"}}]
["Poupança/Investimentos","Custo projetado","Custo real","Diferença"]
["Fundo de pensão",null,null,{"$f":"Savings[Custo projetado]-Savings[Custo real]","v":{"v":0,"d":"0.00 €"}},null,"Presentes e doações","Custo projetado","Custo real","Diferença"]
["Conta de investimento",null,null,{"$f":"Savings[Custo projetado]-Savings[Custo real]","v":{"v":0,"d":"0.00 €"}},null,"Caridade 1",null,null,{"$f":"Gifts[Custo projetado]-Gifts[Custo real]","v":{"v":0,"d":"0.00 €"}}]
["Universidade",null,null,{"$f":"Savings[Custo projetado]-Savings[Custo real]","v":{"v":0,"d":"0.00 €"}},null,"Caridade 2",null,null,{"$f":"Gifts[Custo projetado]-Gifts[Custo real]","v":{"v":0,"d":"0.00 €"}}]
["Outros",null,null,{"$f":"Savings[Custo projetado]-Savings[Custo real]","v":{"v":0,"d":"0.00 €"}},null,"Caridade 3",null,null,{"$f":"Gifts[Custo projetado]-Gifts[Custo real]","v":{"v":0,"d":"0.00 €"}}]
["Total",{"$f":"SUBTOTAL(109,Savings[Custo projetado])","v":{"v":0,"d":"0.00 €"}},{"$f":"SUBTOTAL(109,Savings[Custo real])","v":{"v":0,"d":"0.00 €"}},{"$f":"SUBTOTAL(109,Savings[Diferença])","v":{"v":0,"d":"0.00 €"}},null,"Total",{"$f":"SUBTOTAL(109,Gifts[Custo projetado])","v":{"v":0,"d":"0.00 €"}},{"$f":"SUBTOTAL(109,Gifts[Custo real])","v":{"v":0,"d":"0.00 €"}},{"$f":"SUBTOTAL(109,Gifts[Diferença])","v":{"v":0,"d":"0.00 €"}}]